[Event "Titled Tuesday Blitz July 20 2021"]
[White "Mortazavi, Ali"]
[Black "Moskalenko, Alexander"]
[WhiteFideId "401323"]
[BlackFideId "4155351"]
[WhiteElo "2339"]
[BlackElo "2495"]
[Result "0-1"]
[Round "04"]
[TimeControl "180+1"]
[Date "2021.07.20"]
[WhiteClock "0:00:02"]
[BlackClock "0:00:57"]

1. e4 {[%clk 0:03:00]}  c5 {[%clk 0:02:57]} 2. Nc3 {[%clk 0:03:00]}  Nc6 {[%clk 0:02:58]} 3. g3 {[%clk 0:03:00]}  g6 {[%clk 0:02:58]} 4. Bg2 {[%clk 0:03:01]}  Bg7 {[%clk 0:02:58]} 5. d3 {[%clk 0:03:02]}  Rb8 {[%clk 0:02:59]} 6. Be3 {[%clk 0:03:02]}  d6 {[%clk 0:02:58]} 7. Qd2 {[%clk 0:03:03]}  b5 {[%clk 0:02:59]} 8. Nd1 {[%clk 0:03:03]}  b4 {[%clk 0:02:59]} 9. Ne2 {[%clk 0:03:04]}  a5 {[%clk 0:02:58]} 10. O-O {[%clk 0:03:04]}  Nf6 {[%clk 0:02:56]} 11. Bh6 {[%clk 0:03:03]}  O-O {[%clk 0:02:56]} 12. Bxg7 {[%clk 0:03:03]}  Kxg7 {[%clk 0:02:57]} 13. Ne3 {[%clk 0:03:01]}  e6 {[%clk 0:02:37]} 14. f4 {[%clk 0:02:56]}  Nd4 {[%clk 0:02:33]} 15. h3 {[%clk 0:02:46]}  h5 {[%clk 0:02:21]} 16. Kh2 {[%clk 0:02:41]}  a4 {[%clk 0:02:20]} 17. e5 {[%clk 0:02:16]}  dxe5 {[%clk 0:01:31]} 18. fxe5 {[%clk 0:02:16]}  Nd7 {[%clk 0:01:32]} 19. Nxd4 {[%clk 0:01:36]}  cxd4 {[%clk 0:01:32]} 20. Nc4 {[%clk 0:01:36]}  Ba6 {[%clk 0:01:32]} 21. Rae1 {[%clk 0:01:28]}  b3 {[%clk 0:01:27]} 22. axb3 {[%clk 0:01:24]}  axb3 {[%clk 0:01:28]} 23. Na5 {[%clk 0:00:58]}  bxc2 {[%clk 0:01:21]} 24. Nc6 {[%clk 0:00:58]}  Qc7 {[%clk 0:01:22]} 25. Qg5 {[%clk 0:00:30]}  Bxd3 {[%clk 0:01:18]} 26. Rf2 {[%clk 0:00:22]}  Rxb2 {[%clk 0:01:17]} 27. Nxd4 {[%clk 0:00:10]}  Qc3 {[%clk 0:00:58]} 28. Qe7 {[%clk 0:00:02]}  Qxd4 {[%clk 0:00:57]} 0-1


[Site "https://www.chess.com"]

[Event "Titled Tuesday Blitz July 20 2021"]
[White "Narayanan.S.L"]
[Black "Vasli, Aref"]
[WhiteFideId "5058422"]
[BlackFideId "417521"]
[WhiteElo "2617"]
[BlackElo "2257"]
[Result "1-0"]
[Round "04"]
[TimeControl "180+1"]
[Date "2021.07.21"]
[WhiteClock "0:01:45"]
[BlackClock "0:00:07"]

1. b3 {[%clk 0:03:00]}  Nf6 {[%clk 0:02:55]} 2. Bb2 {[%clk 0:03:00]}  g6 {[%clk 0:02:56]} 3. g3 {[%clk 0:03:00]}  Bg7 {[%clk 0:02:56]} 4. Bg2 {[%clk 0:03:01]}  O-O {[%clk 0:02:57]} 5. Nf3 {[%clk 0:03:01]}  d5 {[%clk 0:02:54]} 6. c4 {[%clk 0:02:59]}  c6 {[%clk 0:02:54]} 7. O-O {[%clk 0:02:59]}  Re8 {[%clk 0:02:47]} 8. d4 {[%clk 0:02:57]}  Ne4 {[%clk 0:02:45]} 9. Nbd2 {[%clk 0:02:57]}  Bg4 {[%clk 0:02:39]} 10. h3 {[%clk 0:02:53]}  Nxd2 {[%clk 0:02:38]} 11. Qxd2 {[%clk 0:02:53]}  Bf5 {[%clk 0:02:36]} 12. Rfc1 {[%clk 0:02:52]}  Be4 {[%clk 0:02:36]} 13. e3 {[%clk 0:02:44]}  Nd7 {[%clk 0:02:35]} 14. cxd5 {[%clk 0:02:43]}  cxd5 {[%clk 0:02:35]} 15. Ne1 {[%clk 0:02:43]}  Bxg2 {[%clk 0:02:35]} 16. Nxg2 {[%clk 0:02:44]}  Qb6 {[%clk 0:02:27]} 17. Nf4 {[%clk 0:02:43]}  e6 {[%clk 0:02:24]} 18. Nd3 {[%clk 0:02:43]}  Rac8 {[%clk 0:02:21]} 19. Rxc8 {[%clk 0:02:42]}  Rxc8 {[%clk 0:02:21]} 20. Rc1 {[%clk 0:02:43]}  Rc6 {[%clk 0:02:19]} 21. Rxc6 {[%clk 0:02:42]}  Qxc6 {[%clk 0:02:14]} 22. a4 {[%clk 0:02:38]}  Bf8 {[%clk 0:02:09]} 23. Kg2 {[%clk 0:02:35]}  h5 {[%clk 0:02:08]} 24. f3 {[%clk 0:02:35]}  Bd6 {[%clk 0:02:06]} 25. g4 {[%clk 0:02:34]}  hxg4 {[%clk 0:02:02]} 26. hxg4 {[%clk 0:02:34]}  Bc7 {[%clk 0:01:45]} 27. Ba3 {[%clk 0:02:29]}  Bd6 {[%clk 0:01:42]} 28. Bxd6 {[%clk 0:02:20]}  Qxd6 {[%clk 0:01:42]} 29. Qc3 {[%clk 0:02:21]}  Kg7 {[%clk 0:01:42]} 30. a5 {[%clk 0:02:18]}  Qa6 {[%clk 0:01:34]} 31. Nf4 {[%clk 0:02:11]}  g5 {[%clk 0:01:09]} 32. Nh5+ {[%clk 0:02:11]}  Kh6 {[%clk 0:00:55]} 33. Ng3 {[%clk 0:02:10]}  Qc6 {[%clk 0:00:45]} 34. Qxc6 {[%clk 0:01:59]}  bxc6 {[%clk 0:00:45]} 35. b4 {[%clk 0:02:00]}  Nb8 {[%clk 0:00:45]} 36. Ne2 {[%clk 0:01:56]}  Na6 {[%clk 0:00:45]} 37. b5 {[%clk 0:01:52]}  cxb5 {[%clk 0:00:45]} 38. Nc3 {[%clk 0:01:53]}  Nc7 {[%clk 0:00:28]} 39. Kf2 {[%clk 0:01:52]}  f5 {[%clk 0:00:25]} 40. Ke2 {[%clk 0:01:51]}  fxg4 {[%clk 0:00:23]} 41. fxg4 {[%clk 0:01:52]}  Kg6 {[%clk 0:00:23]} 42. Na2 {[%clk 0:01:53]}  Kf6 {[%clk 0:00:19]} 43. Nb4 {[%clk 0:01:53]}  a6 {[%clk 0:00:17]} 44. Nc6 {[%clk 0:01:53]}  Kf7 {[%clk 0:00:13]} 45. Kd3 {[%clk 0:01:53]}  Ke8 {[%clk 0:00:13]} 46. e4 {[%clk 0:01:50]}  Kf7 {[%clk 0:00:12]} 47. e5 {[%clk 0:01:50]}  Ke8 {[%clk 0:00:12]} 48. Kc3 {[%clk 0:01:47]}  Kd7 {[%clk 0:00:12]} 49. Nb4 {[%clk 0:01:47]}  Kc8 {[%clk 0:00:11]} 50. Nd3 {[%clk 0:01:47]}  Kb7 {[%clk 0:00:09]} 51. Nc5+ {[%clk 0:01:47]}  Kc6 {[%clk 0:00:09]} 52. Kb4 {[%clk 0:01:48]}  Ne8 {[%clk 0:00:05]} 53. Nxe6 {[%clk 0:01:48]}  Kd7 {[%clk 0:00:04]} 54. Nc5+ {[%clk 0:01:48]}  Kc6 {[%clk 0:00:05]} 55. Nxa6 {[%clk 0:01:48]}  Ng7 {[%clk 0:00:05]} 56. Nc5 {[%clk 0:01:49]}  Ne8 {[%clk 0:00:05]} 57. a6 {[%clk 0:01:48]}  Kb6 {[%clk 0:00:06]} 58. e6 {[%clk 0:01:45]}  Nc7 {[%clk 0:00:05]} 59. e7 {[%clk 0:01:46]}  Ne8 {[%clk 0:00:06]} 60. a7 {[%clk 0:01:43]}  Kxa7 {[%clk 0:00:06]} 61. Kxb5 {[%clk 0:01:44]}  Kb8 {[%clk 0:00:06]} 62. Kc6 {[%clk 0:01:44]}  Kc8 {[%clk 0:00:07]} 63. Nb7 {[%clk 0:01:44]}  Nf6 {[%clk 0:00:07]} 64. Nd6+ {[%clk 0:01:45]} 1-0


[Site "https://www.chess.com"]

[Event "Titled Tuesday Blitz July 20 2021"]
[White "Nguyen, Hong Anh"]
[Black "Mestnikov, Aisen"]
[WhiteFideId "12406732"]
[BlackFideId "34130117"]
[WhiteElo "1974"]
[BlackElo "2027"]
[Result "1/2-1/2"]
[Round "04"]
[TimeControl "180+1"]
[Date "2021.07.21"]
[WhiteClock "0:00:17"]
[BlackClock "0:00:06"]

1. d4 {[%clk 0:03:00]}  d5 {[%clk 0:02:58]} 2. c4 {[%clk 0:03:01]}  c6 {[%clk 0:02:58]} 3. Nf3 {[%clk 0:03:01]}  Nf6 {[%clk 0:02:57]} 4. Qc2 {[%clk 0:03:01]}  g6 {[%clk 0:02:56]} 5. Bf4 {[%clk 0:03:00]}  Bf5 {[%clk 0:02:55]} 6. Qb3 {[%clk 0:03:00]}  Qb6 {[%clk 0:02:54]} 7. e3 {[%clk 0:03:00]}  dxc4 {[%clk 0:02:53]} 8. Bxc4 {[%clk 0:02:59]}  Qxb3 {[%clk 0:02:52]} 9. Bxb3 {[%clk 0:02:58]}  Bg7 {[%clk 0:02:53]} 10. Nc3 {[%clk 0:02:58]}  O-O {[%clk 0:02:51]} 11. O-O {[%clk 0:02:59]}  Nbd7 {[%clk 0:02:51]} 12. Rfe1 {[%clk 0:02:58]}  Nh5 {[%clk 0:02:40]} 13. Bg5 {[%clk 0:02:55]}  e5 {[%clk 0:02:19]} 14. d5 {[%clk 0:02:44]}  h6 {[%clk 0:02:05]} 15. dxc6 {[%clk 0:02:37]}  bxc6 {[%clk 0:02:03]} 16. Be7 {[%clk 0:02:36]}  Rfe8 {[%clk 0:02:03]} 17. Ba3 {[%clk 0:02:36]}  e4 {[%clk 0:01:48]} 18. Nd2 {[%clk 0:02:28]}  Nhf6 {[%clk 0:01:42]} 19. Rad1 {[%clk 0:02:26]}  Ne5 {[%clk 0:01:36]} 20. Nc4 {[%clk 0:02:20]}  Nd3 {[%clk 0:01:35]} 21. Rf1 {[%clk 0:02:18]}  Bf8 {[%clk 0:01:30]} 22. Bxf8 {[%clk 0:02:14]}  Rxf8 {[%clk 0:01:27]} 23. f3 {[%clk 0:02:13]}  Nc5 {[%clk 0:01:24]} 24. fxe4 {[%clk 0:02:11]}  Nfxe4 {[%clk 0:01:23]} 25. Ne5 {[%clk 0:02:04]}  Nxb3 {[%clk 0:01:21]} 26. axb3 {[%clk 0:02:04]}  Nxc3 {[%clk 0:01:17]} 27. bxc3 {[%clk 0:02:05]}  Bc2 {[%clk 0:01:06]} 28. Rd7 {[%clk 0:02:01]}  Bxb3 {[%clk 0:01:06]} 29. Nxc6 {[%clk 0:02:01]}  Kg7 {[%clk 0:00:59]} 30. Nxa7 {[%clk 0:01:55]}  Rfe8 {[%clk 0:00:40]} 31. Rf3 {[%clk 0:01:48]}  Be6 {[%clk 0:00:38]} 32. Rc7 {[%clk 0:01:48]}  Bd5 {[%clk 0:00:38]} 33. Rg3 {[%clk 0:01:41]}  Rab8 {[%clk 0:00:37]} 34. h3 {[%clk 0:01:38]}  Rb1+ {[%clk 0:00:36]} 35. Kh2 {[%clk 0:01:39]}  Rb2 {[%clk 0:00:36]} 36. c4 {[%clk 0:01:37]}  Ba8 {[%clk 0:00:34]} 37. Nb5 {[%clk 0:01:37]}  Rxe3 {[%clk 0:00:29]} 38. Nd6 {[%clk 0:00:44]}  Rxg3 {[%clk 0:00:26]} 39. Kxg3 {[%clk 0:00:44]}  Rxg2+ {[%clk 0:00:25]} 40. Kf4 {[%clk 0:00:44]}  Rf2+ {[%clk 0:00:25]} 41. Ke5 {[%clk 0:00:44]}  g5 {[%clk 0:00:20]} 42. c5 {[%clk 0:00:42]}  Re2+ {[%clk 0:00:19]} 43. Kd4 {[%clk 0:00:42]}  Rd2+ {[%clk 0:00:20]} 44. Kc3 {[%clk 0:00:42]}  Rf2 {[%clk 0:00:18]} 45. Ne8+ {[%clk 0:00:41]}  Kg6 {[%clk 0:00:17]} 46. Rc8 {[%clk 0:00:40]}  Bb7 {[%clk 0:00:16]} 47. Rc7 {[%clk 0:00:39]}  Bd5 {[%clk 0:00:16]} 48. Kd4 {[%clk 0:00:37]}  Bg2 {[%clk 0:00:15]} 49. Nd6 {[%clk 0:00:30]}  Bxh3 {[%clk 0:00:15]} 50. Rc6 {[%clk 0:00:29]}  Kg7 {[%clk 0:00:13]} 51. Ne8+ {[%clk 0:00:28]}  Kf8 {[%clk 0:00:12]} 52. Rxh6 {[%clk 0:00:28]}  Bg2 {[%clk 0:00:09]} 53. Nd6 {[%clk 0:00:23]}  Rf4+ {[%clk 0:00:09]} 54. Ke5 {[%clk 0:00:22]}  Rh4 {[%clk 0:00:09]} 55. Rf6 {[%clk 0:00:19]}  Rh7 {[%clk 0:00:07]} 56. Kf5 {[%clk 0:00:18]}  Ke7 {[%clk 0:00:05]} 57. Kxg5 {[%clk 0:00:17]}  Rh5+ {[%clk 0:00:05]} 58. Kxh5 {[%clk 0:00:17]}  Kxf6 {[%clk 0:00:05]} 59. Kg4 {[%clk 0:00:17]}  Ke6 {[%clk 0:00:06]} 60. Kg3 {[%clk 0:00:17]}  Bc6 {[%clk 0:00:06]} 61. Kf4 {[%clk 0:00:17]}  Kd5 {[%clk 0:00:06]} 62. Nxf7 {[%clk 0:00:17]}  Kxc5 {[%clk 0:00:06]} 1/2-1/2


[Site "https://www.chess.com"]

[Event "Titled Tuesday Blitz July 20 2021"]
[White "Ovchinnikov, Vsevolod"]
[Black "Goltsev, Dmitry"]
[WhiteFideId "24176842"]
[BlackFideId "24176710"]
[WhiteElo "2376"]
[BlackElo "2366"]
[Result "0-1"]
[Round "04"]
[TimeControl "180+1"]
[Date "2021.07.21"]
[WhiteClock "0:00:07"]
[BlackClock "0:00:11"]

1. d4 {[%clk 0:03:00]}  Nf6 {[%clk 0:02:23]} 2. c4 {[%clk 0:03:00]}  e6 {[%clk 0:02:23]} 3. g3 {[%clk 0:03:00]}  Bb4+ {[%clk 0:02:23]} 4. Bd2 {[%clk 0:03:00]}  Qe7 {[%clk 0:02:23]} 5. Nf3 {[%clk 0:02:58]}  Nc6 {[%clk 0:02:23]} 6. Nc3 {[%clk 0:02:58]}  Bxc3 {[%clk 0:02:23]} 7. Bxc3 {[%clk 0:02:58]}  Ne4 {[%clk 0:02:23]} 8. Rc1 {[%clk 0:02:59]}  Nxc3 {[%clk 0:02:23]} 9. Rxc3 {[%clk 0:03:00]}  d5 {[%clk 0:02:23]} 10. Bg2 {[%clk 0:03:00]}  O-O {[%clk 0:02:22]} 11. O-O {[%clk 0:02:59]}  Qf6 {[%clk 0:02:16]} 12. e3 {[%clk 0:02:57]}  Bd7 {[%clk 0:02:15]} 13. cxd5 {[%clk 0:02:28]}  exd5 {[%clk 0:02:15]} 14. Qb3 {[%clk 0:02:28]}  Qd6 {[%clk 0:01:38]} 15. Qxb7 {[%clk 0:02:10]}  Rab8 {[%clk 0:01:31]} 16. Qa6 {[%clk 0:02:10]}  Rxb2 {[%clk 0:01:30]} 17. Qa3 {[%clk 0:01:50]}  Rfb8 {[%clk 0:01:14]} 18. Rc5 {[%clk 0:01:25]}  Re2 {[%clk 0:01:04]} 19. Qd3 {[%clk 0:01:15]}  Rbb2 {[%clk 0:00:58]} 20. Ng5 {[%clk 0:01:15]}  g6 {[%clk 0:00:50]} 21. Bxd5 {[%clk 0:01:02]}  Nd8 {[%clk 0:00:43]} 22. Bc4 {[%clk 0:00:42]}  Red2 {[%clk 0:00:36]} 23. Qe4 {[%clk 0:00:39]}  Qf6 {[%clk 0:00:31]} 24. Qf4 {[%clk 0:00:36]}  Qxf4 {[%clk 0:00:27]} 25. gxf4 {[%clk 0:00:37]}  h6 {[%clk 0:00:27]} 26. Rxc7 {[%clk 0:00:29]}  Bf5 {[%clk 0:00:25]} 27. Nf3 {[%clk 0:00:21]}  Rdc2 {[%clk 0:00:22]} 28. Ne1 {[%clk 0:00:14]}  Rc1 {[%clk 0:00:20]} 29. Nf3 {[%clk 0:00:14]}  Rcc2 {[%clk 0:00:15]} 30. Ne1 {[%clk 0:00:11]}  Rc3 {[%clk 0:00:16]} 31. Kg2 {[%clk 0:00:09]}  Ne6 {[%clk 0:00:14]} 32. Rc8+ {[%clk 0:00:08]}  Kg7 {[%clk 0:00:13]} 33. Bxe6 {[%clk 0:00:09]}  Rxc8 {[%clk 0:00:12]} 34. Bxc8 {[%clk 0:00:10]}  Bxc8 {[%clk 0:00:13]} 35. Nd3 {[%clk 0:00:10]}  Rxa2 {[%clk 0:00:13]} 36. Rc1 {[%clk 0:00:10]}  Bf5 {[%clk 0:00:13]} 37. Nc5 {[%clk 0:00:10]}  a5 {[%clk 0:00:13]} 38. h4 {[%clk 0:00:10]}  a4 {[%clk 0:00:13]} 39. Rc4 {[%clk 0:00:10]}  a3 {[%clk 0:00:13]} 40. Ra4 {[%clk 0:00:11]}  Ra1 {[%clk 0:00:13]} 41. Na6 {[%clk 0:00:10]}  Be6 {[%clk 0:00:12]} 42. Nb4 {[%clk 0:00:10]}  Rb1 {[%clk 0:00:10]} 43. d5 {[%clk 0:00:09]}  Bd7 {[%clk 0:00:10]} 44. Ra7 {[%clk 0:00:08]}  Rxb4 {[%clk 0:00:10]} 45. Rxd7 {[%clk 0:00:08]}  Ra4 {[%clk 0:00:11]} 46. d6 {[%clk 0:00:08]}  a2 {[%clk 0:00:11]} 47. Re7 {[%clk 0:00:06]}  a1=Q {[%clk 0:00:12]} 48. d7 {[%clk 0:00:07]}  Qd1 {[%clk 0:00:11]} 0-1


[Site "https://www.chess.com"]

[Event "Titled Tuesday Blitz July 20 2021"]
[White "Pakleza, Zbigniew"]
[Black "Prraneeth Vuppala"]
[WhiteFideId "1119290"]
[BlackFideId "46622373"]
[WhiteElo "2526"]
[BlackElo "1759"]
[Result "1-0"]
[Round "04"]
[TimeControl "180+1"]
[Date "2021.07.20"]
[WhiteClock "0:00:09"]
[BlackClock "0:00:09"]

1. d4 {[%clk 0:03:00]}  Nf6 {[%clk 0:02:58]} 2. Nf3 {[%clk 0:03:00]}  d5 {[%clk 0:02:57]} 3. Bf4 {[%clk 0:03:00]}  e6 {[%clk 0:02:55]} 4. e3 {[%clk 0:02:59]}  Bd6 {[%clk 0:02:55]} 5. Bg3 {[%clk 0:03:00]}  O-O {[%clk 0:02:53]} 6. Nbd2 {[%clk 0:03:00]}  c5 {[%clk 0:02:53]} 7. c3 {[%clk 0:03:00]}  Qc7 {[%clk 0:02:53]} 8. Ne5 {[%clk 0:03:00]}  Nbd7 {[%clk 0:02:46]} 9. f4 {[%clk 0:02:58]}  Ne4 {[%clk 0:02:24]} 10. Nxe4 {[%clk 0:02:58]}  dxe4 {[%clk 0:02:24]} 11. Nc4 {[%clk 0:02:58]}  cxd4 {[%clk 0:02:08]} 12. cxd4 {[%clk 0:02:59]}  Bb4+ {[%clk 0:02:07]} 13. Kf2 {[%clk 0:02:59]}  Nf6 {[%clk 0:01:58]} 14. Be2 {[%clk 0:02:49]}  Nd5 {[%clk 0:01:55]} 15. Qb3 {[%clk 0:02:36]}  Qe7 {[%clk 0:01:40]} 16. a3 {[%clk 0:01:42]}  Bd6 {[%clk 0:01:34]} 17. Rhc1 {[%clk 0:01:43]}  Bc7 {[%clk 0:01:04]} 18. Kg1 {[%clk 0:01:36]}  Bd7 {[%clk 0:01:01]} 19. Ne5 {[%clk 0:01:28]}  Bxe5 {[%clk 0:00:59]} 20. fxe5 {[%clk 0:01:03]}  Qg5 {[%clk 0:00:55]} 21. Bf2 {[%clk 0:00:57]}  Bc6 {[%clk 0:00:48]} 22. Bc4 {[%clk 0:00:38]}  Ne7 {[%clk 0:00:43]} 23. Qd1 {[%clk 0:00:32]}  Nf5 {[%clk 0:00:42]} 24. Qe1 {[%clk 0:00:31]}  Rfd8 {[%clk 0:00:39]} 25. Rc3 {[%clk 0:00:29]}  h5 {[%clk 0:00:35]} 26. Rac1 {[%clk 0:00:28]}  a6 {[%clk 0:00:33]} 27. Be2 {[%clk 0:00:27]}  h4 {[%clk 0:00:27]} 28. h3 {[%clk 0:00:26]}  Rd7 {[%clk 0:00:20]} 29. Bg4 {[%clk 0:00:24]}  f6 {[%clk 0:00:19]} 30. exf6 {[%clk 0:00:21]}  gxf6 {[%clk 0:00:19]} 31. Bxf5 {[%clk 0:00:19]}  Qxf5 {[%clk 0:00:20]} 32. Bxh4 {[%clk 0:00:20]}  Rg7 {[%clk 0:00:21]} 33. Kh2 {[%clk 0:00:18]}  Kh8 {[%clk 0:00:18]} 34. Qf1 {[%clk 0:00:12]}  Rag8 {[%clk 0:00:15]} 35. g4 {[%clk 0:00:13]}  Qxf1 {[%clk 0:00:08]} 36. Rxf1 {[%clk 0:00:14]}  f5 {[%clk 0:00:09]} 37. Bf6 {[%clk 0:00:13]}  fxg4 {[%clk 0:00:09]} 38. hxg4 {[%clk 0:00:13]}  Kh7 {[%clk 0:00:10]} 39. Bxg7 {[%clk 0:00:13]}  Rxg7 {[%clk 0:00:11]} 40. Kg3 {[%clk 0:00:13]}  Kg6 {[%clk 0:00:10]} 41. Rc2 {[%clk 0:00:13]}  Rh7 {[%clk 0:00:10]} 42. Rh2 {[%clk 0:00:12]}  Rxh2 {[%clk 0:00:10]} 43. Kxh2 {[%clk 0:00:12]}  Kg5 {[%clk 0:00:11]} 44. Kg3 {[%clk 0:00:12]}  Bd5 {[%clk 0:00:11]} 45. Rf4 {[%clk 0:00:12]}  a5 {[%clk 0:00:10]} 46. a4 {[%clk 0:00:10]}  Bc6 {[%clk 0:00:10]} 47. Rf7 {[%clk 0:00:10]}  Bxa4 {[%clk 0:00:09]} 48. Rxb7 {[%clk 0:00:10]}  Bc6 {[%clk 0:00:09]} 49. Rb6 {[%clk 0:00:09]}  Bd5 {[%clk 0:00:09]} 50. Ra6 {[%clk 0:00:09]}  a4 {[%clk 0:00:09]} 51. Rxa4 {[%clk 0:00:09]} 1-0


[Site "https://www.chess.com"]

[Event "Titled Tuesday Blitz July 20 2021"]
[White "Perez Rodriguez, Luis Manuel"]
[Black "Dixit, Arun"]
[WhiteFideId "3503364"]
[BlackFideId "30937671"]
[WhiteElo "2429"]
[BlackElo "2376"]
[Result "1-0"]
[Round "04"]
[TimeControl "180+1"]
[Date "2021.07.21"]
[WhiteClock "0:01:16"]
[BlackClock "0:00:49"]

1. e4 {[%clk 0:03:00]}  c6 {[%clk 0:02:55]} 2. d4 {[%clk 0:03:00]}  d5 {[%clk 0:02:51]} 3. exd5 {[%clk 0:03:01]}  cxd5 {[%clk 0:02:49]} 4. c4 {[%clk 0:02:59]}  Nf6 {[%clk 0:02:46]} 5. Nc3 {[%clk 0:03:00]}  Nc6 {[%clk 0:02:44]} 6. Nf3 {[%clk 0:03:00]}  e6 {[%clk 0:02:42]} 7. cxd5 {[%clk 0:03:00]}  Nxd5 {[%clk 0:02:40]} 8. Bc4 {[%clk 0:03:00]}  Bb4 {[%clk 0:02:36]} 9. Qc2 {[%clk 0:02:59]}  O-O {[%clk 0:02:33]} 10. O-O {[%clk 0:02:58]}  Nb6 {[%clk 0:02:30]} 11. Bd3 {[%clk 0:02:57]}  h6 {[%clk 0:02:29]} 12. Rd1 {[%clk 0:02:57]}  Qe7 {[%clk 0:02:22]} 13. Qe2 {[%clk 0:02:53]}  Rd8 {[%clk 0:02:18]} 14. Qe4 {[%clk 0:02:47]}  f5 {[%clk 0:02:16]} 15. Qe3 {[%clk 0:02:41]}  Nd5 {[%clk 0:02:11]} 16. Nxd5 {[%clk 0:02:39]}  exd5 {[%clk 0:02:12]} 17. Ne5 {[%clk 0:02:27]}  Nxe5 {[%clk 0:02:06]} 18. dxe5 {[%clk 0:02:28]}  Bc5 {[%clk 0:02:03]} 19. Qg3 {[%clk 0:02:27]}  Bd4 {[%clk 0:01:53]} 20. Bxh6 {[%clk 0:02:08]}  Bxe5 {[%clk 0:01:41]} 21. Bf4 {[%clk 0:02:08]}  Bxf4 {[%clk 0:01:40]} 22. Qxf4 {[%clk 0:02:06]}  Qf6 {[%clk 0:01:39]} 23. Rac1 {[%clk 0:02:03]}  Be6 {[%clk 0:01:38]} 24. Rc7 {[%clk 0:02:02]}  Qxb2 {[%clk 0:01:24]} 25. Bxf5 {[%clk 0:01:56]}  Qf6 {[%clk 0:01:20]} 26. Bxe6+ {[%clk 0:01:51]}  Qxe6 {[%clk 0:01:19]} 27. Rxb7 {[%clk 0:01:51]}  Rf8 {[%clk 0:01:08]} 28. Qd4 {[%clk 0:01:49]}  Rf7 {[%clk 0:00:58]} 29. Rxf7 {[%clk 0:01:47]}  Qxf7 {[%clk 0:00:56]} 30. Qxd5 {[%clk 0:01:48]}  Rb8 {[%clk 0:00:57]} 31. h4 {[%clk 0:01:44]}  Rb2 {[%clk 0:00:54]} 32. Qxf7+ {[%clk 0:01:42]}  Kxf7 {[%clk 0:00:51]} 33. Rd7+ {[%clk 0:01:43]}  Kg6 {[%clk 0:00:51]} 34. Rxa7 {[%clk 0:01:43]}  Kh6 {[%clk 0:00:51]} 35. g3 {[%clk 0:01:44]}  g5 {[%clk 0:00:50]} 36. Ra6+ {[%clk 0:01:42]}  Kh5 {[%clk 0:00:47]} 37. Ra5 {[%clk 0:01:42]}  Kg4 {[%clk 0:00:46]} 38. Rxg5+ {[%clk 0:01:42]}  Kh3 {[%clk 0:00:47]} 39. Kf1 {[%clk 0:01:40]}  Rxa2 {[%clk 0:00:46]} 40. h5 {[%clk 0:01:40]}  Ra1+ {[%clk 0:00:44]} 41. Ke2 {[%clk 0:01:40]}  Kg2 {[%clk 0:00:45]} 42. f4 {[%clk 0:01:28]}  Ra2+ {[%clk 0:00:42]} 43. Ke3 {[%clk 0:01:28]}  Ra3+ {[%clk 0:00:43]} 44. Ke4 {[%clk 0:01:28]}  Ra4+ {[%clk 0:00:43]} 45. Kf5 {[%clk 0:01:28]}  Kf3 {[%clk 0:00:44]} 46. h6 {[%clk 0:01:26]}  Ra5+ {[%clk 0:00:41]} 47. Kg6 {[%clk 0:01:26]}  Ra6+ {[%clk 0:00:42]} 48. Kh5 {[%clk 0:01:26]}  Ra7 {[%clk 0:00:42]} 49. Rg7 {[%clk 0:01:25]}  Ra5+ {[%clk 0:00:42]} 50. Rg5 {[%clk 0:01:25]}  Ra1 {[%clk 0:00:41]} 51. h7 {[%clk 0:01:24]}  Rh1+ {[%clk 0:00:42]} 52. Kg6 {[%clk 0:01:25]}  Rh3 {[%clk 0:00:42]} 53. Kg7 {[%clk 0:01:24]}  Rxg3 {[%clk 0:00:42]} 54. Rxg3+ {[%clk 0:01:22]}  Kxg3 {[%clk 0:00:43]} 55. f5 {[%clk 0:01:22]}  Kf4 {[%clk 0:00:44]} 56. f6 {[%clk 0:01:22]}  Kg5 {[%clk 0:00:45]} 57. f7 {[%clk 0:01:22]}  Kg4 {[%clk 0:00:46]} 58. f8=Q {[%clk 0:01:22]}  Kg3 {[%clk 0:00:47]} 59. h8=Q {[%clk 0:01:21]}  Kg2 {[%clk 0:00:48]} 60. Qf6 {[%clk 0:01:21]}  Kg1 {[%clk 0:00:48]} 61. Qf4 {[%clk 0:01:17]}  Kg2 {[%clk 0:00:49]} 62. Qhh2# {[%clk 0:01:16]} 1-0


[Site "https://www.chess.com"]